[Event "*** Titled Tuesday Blitz"]
[Site "Chess.com"]
[Date "2021.04.27"]
[Round "8"]
[White "HouseOfDurin"]
[Black "AEMEffi"]
[Result "0-1"]
[WhiteElo "2127"]
[BlackElo "2315"]
[TimeControl "180+1"]
[EndTime "11:27:17 PDT"]
[Termination "AEMEffi won on time"]

1. d4 {[%clk 0:03:00.9]} 1... Nf6 {[%clk 0:02:56.2]} 2. Bg5 {[%clk 0:03:01.3]}
2... g6 {[%clk 0:02:56.8]} 3. Bxf6 {[%clk 0:03:00.2]} 3... exf6 {[%clk
0:02:57.7]} 4. c4 {[%clk 0:03:00.4]} 4... f5 {[%clk 0:02:57.4]} 5. Nc3 {[%clk
0:03:00.3]} 5... Bg7 {[%clk 0:02:58.3]} 6. g3 {[%clk 0:03:00.7]} 6... O-O {[%clk
0:02:57.4]} 7. Bg2 {[%clk 0:03:00.8]} 7... d6 {[%clk 0:02:55.9]} 8. e3 {[%clk
0:03:01.3]} 8... c6 {[%clk 0:02:55.5]} 9. Nge2 {[%clk 0:03:01.7]} 9... Nd7
{[%clk 0:02:55.6]} 10. O-O {[%clk 0:03:01.7]} 10... Nf6 {[%clk 0:02:55.9]} 11.
b4 {[%clk 0:03:00.8]} 11... Re8 {[%clk 0:02:56.1]} 12. Qd3 {[%clk 0:02:52.9]}
12... h5 {[%clk 0:02:31.2]} 13. h4 {[%clk 0:02:51.9]} 13... a5 {[%clk 0:02:06]}
14. b5 {[%clk 0:02:49.4]} 14... Bd7 {[%clk 0:02:05.6]} 15. a4 {[%clk 0:02:48.1]}
15... Qe7 {[%clk 0:02:01]} 16. Nf4 {[%clk 0:02:30]} 16... Ng4 {[%clk 0:01:55.1]}
17. bxc6 {[%clk 0:02:17.9]} 17... bxc6 {[%clk 0:01:54.5]} 18. Rab1 {[%clk
0:02:15.8]} 18... Rab8 {[%clk 0:01:54.3]} 19. Rxb8 {[%clk 0:01:45.1]} 19... Rxb8
{[%clk 0:01:53.3]} 20. Rb1 {[%clk 0:01:45.7]} 20... Qd8 {[%clk 0:01:36.4]} 21.
Rxb8 {[%clk 0:01:22]} 21... Qxb8 {[%clk 0:01:37.3]} 22. Qb1 {[%clk 0:01:22.1]}
22... Qxb1+ {[%clk 0:01:07.4]} 23. Nxb1 {[%clk 0:01:23]} 23... c5 {[%clk
0:01:07.9]} 24. dxc5 {[%clk 0:01:10.2]} 24... dxc5 {[%clk 0:01:08.8]} 25. Nd3
{[%clk 0:01:10.3]} 25... Bxa4 {[%clk 0:00:59.7]} 26. Nxc5 {[%clk 0:01:09.7]}
26... Bc2 {[%clk 0:00:55.4]} 27. Na3 {[%clk 0:01:04.8]} 27... Bd1 {[%clk
0:00:45.9]} 28. Nd7 {[%clk 0:00:58.7]} 28... Ne5 {[%clk 0:00:40.7]} 29. Nb6
{[%clk 0:00:46.2]} 29... Bf8 {[%clk 0:00:37.7]} 30. Nb5 {[%clk 0:00:38.2]} 30...
Bc5 {[%clk 0:00:37.3]} 31. Nd5 {[%clk 0:00:29.3]} 31... Nxc4 {[%clk 0:00:35.2]}
32. Bf1 {[%clk 0:00:23.9]} 32... Nd6 {[%clk 0:00:20.6]} 33. Nbc3 {[%clk
0:00:19]} 33... Bb3 {[%clk 0:00:17.8]} 34. Nf6+ {[%clk 0:00:12]} 34... Kg7
{[%clk 0:00:16.8]} 35. Nd7 {[%clk 0:00:12.3]} 35... Bb4 {[%clk 0:00:16.7]} 36.
Nb1 {[%clk 0:00:06.1]} 36... a4 {[%clk 0:00:15.9]} 37. Nb6 {[%clk 0:00:03.9]}
37... a3 {[%clk 0:00:15.4]} 0-1

[Event "*** Titled Tuesday Blitz"]
[Site "Chess.com"]
[Date "2021.04.27"]
[Round "8"]
[White "TimofeevAr"]
[Black "PolandHussars"]
[Result "1-0"]
[WhiteElo "2819"]
[BlackElo "2623"]
[TimeControl "180+1"]
[EndTime "11:27:18 PDT"]
[Termination "TimofeevAr won by checkmate"]

1. c4 {[%clk 0:03:00.9]} 1... g6 {[%clk 0:02:57.5]} 2. Nc3 {[%clk 0:03:00.1]}
2... Bg7 {[%clk 0:02:57.9]} 3. g3 {[%clk 0:03:00.6]} 3... e5 {[%clk 0:02:56.9]}
4. Bg2 {[%clk 0:03:00.8]} 4... c5 {[%clk 0:02:57.4]} 5. Nf3 {[%clk 0:02:58.2]}
5... Ne7 {[%clk 0:02:57.2]} 6. O-O {[%clk 0:02:58.3]} 6... Nbc6 {[%clk
0:02:57.7]} 7. Ne1 {[%clk 0:02:58]} 7... O-O {[%clk 0:02:57.5]} 8. Nc2 {[%clk
0:02:58.2]} 8... d6 {[%clk 0:02:53.7]} 9. Ne3 {[%clk 0:02:58.4]} 9... Be6 {[%clk
0:02:53.8]} 10. d3 {[%clk 0:02:58.2]} 10... h6 {[%clk 0:02:54.2]} 11. a3 {[%clk
0:02:56.8]} 11... a5 {[%clk 0:02:52.9]} 12. Bd2 {[%clk 0:02:56.4]} 12... Kh7
{[%clk 0:02:50.6]} 13. Rb1 {[%clk 0:02:55.7]} 13... f5 {[%clk 0:02:50]} 14. Ned5
{[%clk 0:02:55.9]} 14... g5 {[%clk 0:02:41]} 15. b4 {[%clk 0:02:55.5]} 15...
axb4 {[%clk 0:02:41.9]} 16. axb4 {[%clk 0:02:55.5]} 16... Rb8 {[%clk 0:02:10.8]}
17. bxc5 {[%clk 0:02:44.5]} 17... dxc5 {[%clk 0:02:10.7]} 18. Re1 {[%clk
0:02:43.3]} 18... Nd4 {[%clk 0:02:04.4]} 19. e3 {[%clk 0:02:40.9]} 19... Ndc6
{[%clk 0:02:02.4]} 20. Nxe7 {[%clk 0:02:31.8]} 20... Qxe7 {[%clk 0:02:00.6]} 21.
Nd5 {[%clk 0:02:31.9]} 21... Qd6 {[%clk 0:01:56.1]} 22. Qa4 {[%clk 0:02:30]}
22... b5 {[%clk 0:01:37.9]} 23. Rxb5 {[%clk 0:02:25.7]} 23... Rxb5 {[%clk
0:01:37.8]} 24. Qxb5 {[%clk 0:02:23.3]} 24... Rb8 {[%clk 0:01:38.3]} 25. Qa4
{[%clk 0:02:23.6]} 25... Nb4 {[%clk 0:01:28.6]} 26. Bxb4 {[%clk 0:02:15.3]}
26... cxb4 {[%clk 0:01:28.1]} 27. Rb1 {[%clk 0:02:15.9]} 27... Bxd5 {[%clk
0:01:24.7]} 28. Bxd5 {[%clk 0:02:15.5]} 28... Qb6 {[%clk 0:01:15.3]} 29. Rb3
{[%clk 0:02:14.3]} 29... f4 {[%clk 0:01:13.9]} 30. gxf4 {[%clk 0:01:28.2]} 30...
exf4 {[%clk 0:01:08.4]} 31. d4 {[%clk 0:01:24.8]} 31... fxe3 {[%clk 0:01:07.7]}
32. fxe3 {[%clk 0:01:25.1]} 32... Bxd4 {[%clk 0:01:03.6]} 33. Qd7+ {[%clk
0:01:00.2]} 33... Kh8 {[%clk 0:00:56.3]} 34. Be4 {[%clk 0:00:55.6]} 34... Bxe3+
{[%clk 0:00:37]} 35. Kg2 {[%clk 0:00:52.6]} 35... Qa7 {[%clk 0:00:37.1]} 36. Qf5
{[%clk 0:00:45.5]} 36... Bd4 {[%clk 0:00:29.9]} 37. Rd3 {[%clk 0:00:40.3]} 37...
Bc3 {[%clk 0:00:03.2]} 38. Rd7 {[%clk 0:00:34.7]} 38... Qa2+ {[%clk 0:00:03.4]}
39. Kh3 {[%clk 0:00:20.6]} 39... g4+ {[%clk 0:00:03.9]} 40. Qxg4 {[%clk
0:00:20.7]} 40... Qf2 {[%clk 0:00:03.1]} 41. Rh7# {[%clk 0:00:19.9]} 1-0

[Event "*** Titled Tuesday Blitz"]
[Site "Chess.com"]
[Date "2021.04.27"]
[Round "8"]
[White "ybruned"]
[Black "nss13"]
[Result "1-0"]
[WhiteElo "2391"]
[BlackElo "2530"]
[TimeControl "180+1"]
[EndTime "11:27:18 PDT"]
[Termination "ybruned won by resignation"]

1. b3 {[%clk 0:03:00.9]} 1... d5 {[%clk 0:02:59.7]} 2. Bb2 {[%clk 0:03:00.4]}
2... Bg4 {[%clk 0:03:00.3]} 3. f3 {[%clk 0:03:00]} 3... Bh5 {[%clk 0:03:00.2]}
4. e4 {[%clk 0:03:00.7]} 4... dxe4 {[%clk 0:03:00.5]} 5. Qe2 {[%clk 0:03:00.8]}
5... c6 {[%clk 0:03:01]} 6. Nc3 {[%clk 0:03:00.4]} 6... Nf6 {[%clk 0:03:00.8]}
7. O-O-O {[%clk 0:02:59.1]} 7... exf3 {[%clk 0:02:53.5]} 8. Nxf3 {[%clk
0:02:57.9]} 8... Nbd7 {[%clk 0:02:51.7]} 9. h3 {[%clk 0:02:58.3]} 9... e6 {[%clk
0:02:41.3]} 10. g4 {[%clk 0:02:57.6]} 10... Bg6 {[%clk 0:02:41.9]} 11. h4 {[%clk
0:02:58.3]} 11... h6 {[%clk 0:02:37.8]} 12. Bh3 {[%clk 0:02:56.8]} 12... Qa5
{[%clk 0:02:35]} 13. g5 {[%clk 0:02:50]} 13... hxg5 {[%clk 0:02:33.3]} 14. hxg5
{[%clk 0:02:49.5]} 14... Nh5 {[%clk 0:02:16.2]} 15. Bxe6 {[%clk 0:02:44.1]}
15... O-O-O {[%clk 0:02:16.4]} 16. Bxd7+ {[%clk 0:02:34.4]} 16... Rxd7 {[%clk
0:02:15.7]} 17. Ne5 {[%clk 0:02:35]} 17... Ng3 {[%clk 0:02:06.2]} 18. Qg4 {[%clk
0:02:22.1]} 18... Rxh1 {[%clk 0:01:48.1]} 19. Qxd7+ {[%clk 0:02:05.3]} 19... Kb8
{[%clk 0:01:48.7]} 20. Qe8+ {[%clk 0:01:52.9]} 20... Kc7 {[%clk 0:01:48.8]} 21.
Qd7+ {[%clk 0:01:38.3]} 21... Kb8 {[%clk 0:01:48.5]} 22. Qe8+ {[%clk 0:01:24.1]}
22... Kc7 {[%clk 0:01:48.3]} 23. Rxh1 {[%clk 0:01:20.2]} 23... Nxh1 {[%clk
0:01:46.5]} 24. Nxg6 {[%clk 0:01:16.9]} 24... fxg6 {[%clk 0:01:17.8]} 25. Qxf8
{[%clk 0:01:14.7]} 25... Qxg5 {[%clk 0:01:18.4]} 26. Qxg7+ {[%clk 0:01:11.6]}
26... Kb6 {[%clk 0:01:16.7]} 27. Qd4+ {[%clk 0:01:11.2]} 27... Ka6 {[%clk
0:01:16.4]} 28. Qc4+ {[%clk 0:01:08.8]} 28... Kb6 {[%clk 0:01:15.3]} 29. Na4+
{[%clk 0:01:08.1]} 29... Kc7 {[%clk 0:01:14.1]} 30. Qf7+ {[%clk 0:01:07.2]}
30... Kd6 {[%clk 0:01:11.1]} 31. Qf8+ {[%clk 0:01:07]} 31... Ke6 {[%clk
0:01:05.8]} 32. Qe8+ {[%clk 0:01:03.3]} 32... Kf5 {[%clk 0:00:58.3]} 33. Qd7+
{[%clk 0:00:53.4]} 33... Kf4 {[%clk 0:00:52.8]} 34. Qd4+ {[%clk 0:00:45.6]}
34... Kf3 {[%clk 0:00:52.8]} 35. Qxa7 {[%clk 0:00:35.8]} 35... Nf2 {[%clk
0:00:51.1]} 36. Qe3+ {[%clk 0:00:30.8]} 36... Qxe3 {[%clk 0:00:51.3]} 37. dxe3
{[%clk 0:00:31.7]} 37... g5 {[%clk 0:00:52]} 38. Be5 {[%clk 0:00:25.9]} 38... g4
{[%clk 0:00:51.1]} 39. Nc5 {[%clk 0:00:22.7]} 39... Kxe3 {[%clk 0:00:33.5]} 40.
Nxb7 {[%clk 0:00:22.6]} 40... Nh3 {[%clk 0:00:33.7]} 41. Bh2 {[%clk 0:00:21.3]}
41... Kf3 {[%clk 0:00:28]} 42. Nd8 {[%clk 0:00:19.9]} 42... Kg2 {[%clk
0:00:28.4]} 43. Bd6 {[%clk 0:00:18.7]} 43... Kf3 {[%clk 0:00:28.4]} 44. Nxc6
{[%clk 0:00:13.9]} 44... Nf4 {[%clk 0:00:28.8]} 45. Nd4+ {[%clk 0:00:11.9]}
45... Ke4 {[%clk 0:00:29.1]} 46. Bxf4 {[%clk 0:00:11.9]} 46... Kxf4 {[%clk
0:00:29.5]} 47. Kd2 {[%clk 0:00:12.6]} 47... Ke4 {[%clk 0:00:29.5]} 48. Ne2
{[%clk 0:00:13]} 1-0

[Event "*** Titled Tuesday Blitz"]
[Site "Chess.com"]
[Date "2021.04.27"]
[Round "8"]
[White "PavelChernomordik"]
[Black "shaheus"]
[Result "1-0"]
[WhiteElo "2388"]
[BlackElo "2172"]
[TimeControl "180+1"]
[EndTime "11:27:23 PDT"]
[Termination "PavelChernomordik won by resignation"]

1. e4 {[%clk 0:03:00.9]} 1... c5 {[%clk 0:02:59.5]} 2. Nc3 {[%clk 0:02:59.8]}
2... Nc6 {[%clk 0:02:59.6]} 3. Bb5 {[%clk 0:02:59.1]} 3... g6 {[%clk 0:02:57.5]}
4. Bxc6 {[%clk 0:02:58.5]} 4... bxc6 {[%clk 0:02:57]} 5. f4 {[%clk 0:02:59.4]}
5... Bg7 {[%clk 0:02:57.2]} 6. Nf3 {[%clk 0:02:59]} 6... d6 {[%clk 0:02:54.4]}
7. O-O {[%clk 0:02:58.4]} 7... e6 {[%clk 0:02:49.4]} 8. d3 {[%clk 0:02:54.6]}
8... Ne7 {[%clk 0:02:45.7]} 9. Be3 {[%clk 0:02:53.8]} 9... O-O {[%clk
0:02:30.1]} 10. Bf2 {[%clk 0:02:52.9]} 10... Rb8 {[%clk 0:02:25.8]} 11. Rb1
{[%clk 0:02:51.9]} 11... Ba6 {[%clk 0:01:52.1]} 12. e5 {[%clk 0:02:43.2]} 12...
c4 {[%clk 0:01:47.1]} 13. exd6 {[%clk 0:02:28.8]} 13... Qxd6 {[%clk 0:01:45.8]}
14. dxc4 {[%clk 0:02:18.6]} 14... Qxd1 {[%clk 0:01:40]} 15. Rfxd1 {[%clk
0:02:16.7]} 15... Bxc4 {[%clk 0:01:40]} 16. Bxa7 {[%clk 0:02:14.4]} 16... Rb7
{[%clk 0:01:27.2]} 17. Bc5 {[%clk 0:02:11.7]} 17... Ra8 {[%clk 0:01:21.9]} 18.
Ne5 {[%clk 0:02:08.9]} 18... Bxe5 {[%clk 0:01:14.9]} 19. fxe5 {[%clk 0:02:08.2]}
19... Nd5 {[%clk 0:01:07.9]} 20. Bd4 {[%clk 0:01:52.7]} 20... c5 {[%clk
0:00:51.5]} 21. Bxc5 {[%clk 0:01:46.3]} 21... Nxc3 {[%clk 0:00:30.6]} 22. bxc3
{[%clk 0:01:44.7]} 22... Rxb1 {[%clk 0:00:30.6]} 23. Rxb1 {[%clk 0:01:43.9]}
23... Bxa2 {[%clk 0:00:30.7]} 24. Ra1 {[%clk 0:01:30.9]} 24... Bd5 {[%clk
0:00:29.5]} 25. Rxa8+ {[%clk 0:01:29.6]} 25... Bxa8 {[%clk 0:00:29.3]} 26. g3
{[%clk 0:01:29.8]} 26... Kg7 {[%clk 0:00:24.3]} 27. Be7 {[%clk 0:01:29]} 27...
g5 {[%clk 0:00:20.5]} 28. Bxg5 {[%clk 0:01:22.5]} 28... Be4 {[%clk 0:00:19.8]}
29. Kf2 {[%clk 0:01:20.7]} 29... Bxc2 {[%clk 0:00:20]} 30. c4 {[%clk 0:01:20]}
30... Bd3 {[%clk 0:00:18.8]} 31. c5 {[%clk 0:01:18.5]} 31... Be4 {[%clk
0:00:19.2]} 32. Ke3 {[%clk 0:01:17.4]} 32... Bc6 {[%clk 0:00:19.4]} 33. Kd4
{[%clk 0:01:16.5]} 33... Kg6 {[%clk 0:00:19.7]} 34. Bf4 {[%clk 0:01:14.6]} 34...
Kf5 {[%clk 0:00:19.4]} 35. h4 {[%clk 0:01:12.8]} 35... h5 {[%clk 0:00:19.2]} 36.
Kc4 {[%clk 0:01:12]} 36... Ke4 {[%clk 0:00:19.3]} 37. Kb4 {[%clk 0:01:08]} 37...
Kd5 {[%clk 0:00:16.3]} 38. g4 {[%clk 0:01:00.5]} 38... hxg4 {[%clk 0:00:14.8]}
39. h5 {[%clk 0:01:00.5]} 39... Ke4 {[%clk 0:00:11.3]} 40. Bh2 {[%clk 0:00:58]}
40... g3 {[%clk 0:00:10.2]} 41. Bxg3 {[%clk 0:00:56.1]} 41... Kf5 {[%clk
0:00:10.4]} 42. h6 {[%clk 0:00:55.1]} 42... Kg6 {[%clk 0:00:10.5]} 43. Bf4
{[%clk 0:00:55.5]} 43... f6 {[%clk 0:00:09.7]} 44. exf6 {[%clk 0:00:53.1]} 44...
Kxf6 {[%clk 0:00:10.2]} 45. Ka5 {[%clk 0:00:51.6]} 45... Kg6 {[%clk 0:00:09.7]}
46. Kb6 {[%clk 0:00:50.8]} 46... Bd5 {[%clk 0:00:09.6]} 47. c6 {[%clk
0:00:50.3]} 47... Bxc6 {[%clk 0:00:08.2]} 48. Kxc6 {[%clk 0:00:48.7]} 48... e5
{[%clk 0:00:08.8]} 49. Be3 {[%clk 0:00:48.4]} 49... e4 {[%clk 0:00:05.4]} 50.
Kd5 {[%clk 0:00:47.8]} 1-0

[Event "*** Titled Tuesday Blitz"]
[Site "Chess.com"]
[Date "2021.04.27"]
[Round "8"]
[White "FMalexhdez"]
[Black "KubaGepard"]
[Result "0-1"]
[WhiteElo "2257"]
[BlackElo "2395"]
[TimeControl "180+1"]
[EndTime "11:27:24 PDT"]
[Termination "KubaGepard won on time"]

1. e4 {[%clk 0:02:54.2]} 1... e5 {[%clk 0:02:58.9]} 2. Nf3 {[%clk 0:02:53.3]}
2... Nc6 {[%clk 0:02:57.6]} 3. Bc4 {[%clk 0:02:53.6]} 3... Bc5 {[%clk
0:02:56.4]} 4. O-O {[%clk 0:02:52.9]} 4... Nf6 {[%clk 0:02:56]} 5. d3 {[%clk
0:02:51.2]} 5... O-O {[%clk 0:02:55.6]} 6. c3 {[%clk 0:02:51.5]} 6... d6 {[%clk
0:02:47.2]} 7. Nbd2 {[%clk 0:02:49.4]} 7... a6 {[%clk 0:02:46.9]} 8. Bb3 {[%clk
0:02:46.1]} 8... Ba7 {[%clk 0:02:46]} 9. h3 {[%clk 0:02:45.6]} 9... h6 {[%clk
0:02:44.2]} 10. Re1 {[%clk 0:02:45.5]} 10... Nh5 {[%clk 0:02:40.3]} 11. Nf1
{[%clk 0:02:45.2]} 11... Qf6 {[%clk 0:02:38.6]} 12. Be3 {[%clk 0:02:41]} 12...
Bxe3 {[%clk 0:02:37.6]} 13. fxe3 {[%clk 0:02:35.1]} 13... Qe7 {[%clk 0:02:37]}
14. d4 {[%clk 0:02:14.3]} 14... Nf6 {[%clk 0:02:33.5]} 15. Ng3 {[%clk
0:02:07.7]} 15... g6 {[%clk 0:02:31.7]} 16. Nh2 {[%clk 0:01:41.6]} 16... Kg7
{[%clk 0:02:28.4]} 17. Qf3 {[%clk 0:01:37.1]} 17... Na5 {[%clk 0:02:25.2]} 18.
Rf1 {[%clk 0:01:33.9]} 18... Be6 {[%clk 0:02:21.8]} 19. Bxe6 {[%clk 0:01:30.2]}
19... Qxe6 {[%clk 0:02:18.4]} 20. d5 {[%clk 0:01:30.1]} 20... Qe7 {[%clk
0:02:12.4]} 21. Ng4 {[%clk 0:01:30.4]} 21... Nxg4 {[%clk 0:02:11.6]} 22. hxg4
{[%clk 0:01:25.7]} 22... Nc4 {[%clk 0:02:08.4]} 23. Rf2 {[%clk 0:01:25.6]} 23...
Nb6 {[%clk 0:02:04.4]} 24. Raf1 {[%clk 0:01:22.2]} 24... Nd7 {[%clk 0:02:03.7]}
25. Qe2 {[%clk 0:00:54.6]} 25... Nb6 {[%clk 0:01:49.4]} 26. b3 {[%clk
0:00:54.1]} 26... a5 {[%clk 0:01:48.7]} 27. a4 {[%clk 0:00:53.9]} 27... Qg5
{[%clk 0:01:37.9]} 28. Rf6 {[%clk 0:00:33.5]} 28... Qxf6 {[%clk 0:01:32.7]} 29.
Rxf6 {[%clk 0:00:32.8]} 29... Kxf6 {[%clk 0:01:33.2]} 30. Qf2+ {[%clk
0:00:29.7]} 30... Kg7 {[%clk 0:01:32.5]} 31. Nf1 {[%clk 0:00:26.4]} 31... c5
{[%clk 0:01:25.3]} 32. c4 {[%clk 0:00:23.8]} 32... Nd7 {[%clk 0:01:23]} 33. Ng3
{[%clk 0:00:20]} 33... f6 {[%clk 0:01:21.8]} 34. Qf3 {[%clk 0:00:19.4]} 34...
Rf7 {[%clk 0:01:21.2]} 35. Kf2 {[%clk 0:00:19.4]} 35... Raf8 {[%clk 0:01:20.9]}
36. Ke2 {[%clk 0:00:19.9]} 36... Nb6 {[%clk 0:01:21.1]} 37. Kd3 {[%clk 0:00:18]}
37... Nc8 {[%clk 0:01:21.2]} 38. Ke2 {[%clk 0:00:17.6]} 38... Ne7 {[%clk
0:01:21.7]} 39. Kd2 {[%clk 0:00:17.7]} 39... Kh7 {[%clk 0:01:21]} 40. Ke2 {[%clk
0:00:17.9]} 40... f5 {[%clk 0:01:19.2]} 41. exf5 {[%clk 0:00:16.8]} 41... gxf5
{[%clk 0:01:18.5]} 42. gxf5 {[%clk 0:00:14.3]} 42... Nxf5 {[%clk 0:01:17.5]} 43.
Nxf5 {[%clk 0:00:14.2]} 43... Rxf5 {[%clk 0:01:16.9]} 44. Qe4 {[%clk 0:00:12.4]}
44... Kg7 {[%clk 0:01:15.7]} 45. Kd3 {[%clk 0:00:12.1]} 45... h5 {[%clk
0:01:13.8]} 46. Qh4 {[%clk 0:00:11.2]} 46... R8f7 {[%clk 0:00:58.6]} 47. Qd8
{[%clk 0:00:10.8]} 47... R5f6 {[%clk 0:00:56.8]} 48. Qxa5 {[%clk 0:00:10.5]}
48... Rg6 {[%clk 0:00:57]} 49. Qd8 {[%clk 0:00:08.9]} 49... Rf2 {[%clk
0:00:52.9]} 50. Ke4 {[%clk 0:00:05.7]} 50... Rfxg2 {[%clk 0:00:51.5]} 51. a5
{[%clk 0:00:04.4]} 51... R2g4+ {[%clk 0:00:49.3]} 52. Kd3 {[%clk 0:00:02.4]}
52... e4+ {[%clk 0:00:48.1]} 53. Kc3 {[%clk 0:00:02.5]} 53... h4 {[%clk
0:00:48.3]} 54. Qd7+ {[%clk 0:00:02.2]} 54... Kh6 {[%clk 0:00:47.8]} 55. Qxb7
{[%clk 0:00:02.8]} 55... h3 {[%clk 0:00:47.1]} 0-1

[Event "*** Titled Tuesday Blitz"]
[Site "Chess.com"]
[Date "2021.04.27"]
[Round "8"]
[White "Abund"]
[Black "rpragchess"]
[Result "1-0"]
[WhiteElo "2770"]
[BlackElo "2893"]
[TimeControl "180+1"]
[EndTime "11:27:28 PDT"]
[Termination "Abund won by checkmate"]

1. e4 {[%clk 0:03:00.9]} 1... c5 {[%clk 0:03:00]} 2. Nf3 {[%clk 0:03:01.1]} 2...
Nc6 {[%clk 0:03:00.5]} 3. Bb5 {[%clk 0:03:01.2]} 3... e6 {[%clk 0:02:54.9]} 4.
O-O {[%clk 0:02:58.2]} 4... Nge7 {[%clk 0:02:54.2]} 5. d4 {[%clk 0:02:53.9]}
5... cxd4 {[%clk 0:02:54.3]} 6. Nxd4 {[%clk 0:02:54.1]} 6... Qb6 {[%clk
0:02:53.3]} 7. Nxc6 {[%clk 0:02:49.6]} 7... bxc6 {[%clk 0:02:51.2]} 8. Bd3
{[%clk 0:02:46]} 8... Ng6 {[%clk 0:02:50.4]} 9. Nd2 {[%clk 0:02:33.8]} 9... Qc7
{[%clk 0:02:35.5]} 10. c4 {[%clk 0:02:22.9]} 10... Bc5 {[%clk 0:02:27.6]} 11.
Nb3 {[%clk 0:02:16]} 11... Bd6 {[%clk 0:02:25.5]} 12. g3 {[%clk 0:02:12]} 12...
c5 {[%clk 0:02:24.6]} 13. f4 {[%clk 0:02:05.7]} 13... Bb7 {[%clk 0:02:24.3]} 14.
Qe2 {[%clk 0:02:02.6]} 14... h5 {[%clk 0:02:19.3]} 15. h4 {[%clk 0:01:53.9]}
15... Be7 {[%clk 0:02:07.5]} 16. Bd2 {[%clk 0:01:39.5]} 16... d6 {[%clk
0:01:59.6]} 17. Na5 {[%clk 0:01:35.9]} 17... Rb8 {[%clk 0:01:32.5]} 18. Nxb7
{[%clk 0:01:34.3]} 18... Qxb7 {[%clk 0:01:33.4]} 19. Bc3 {[%clk 0:01:31.4]}
19... e5 {[%clk 0:01:32.8]} 20. Bc2 {[%clk 0:01:10.5]} 20... exf4 {[%clk
0:01:25.3]} 21. gxf4 {[%clk 0:00:49.4]} 21... Nxh4 {[%clk 0:01:21.6]} 22. e5
{[%clk 0:00:43.9]} 22... Rh6 {[%clk 0:01:12.9]} 23. Be4 {[%clk 0:00:38.8]} 23...
Qd7 {[%clk 0:01:09.5]} 24. Kh2 {[%clk 0:00:32.6]} 24... Kf8 {[%clk 0:00:57.3]}
25. Rg1 {[%clk 0:00:27.7]} 25... Re8 {[%clk 0:00:52.4]} 26. Rxg7 {[%clk
0:00:25.8]} 26... Kxg7 {[%clk 0:00:50]} 27. e6+ {[%clk 0:00:25]} 27... Bf6
{[%clk 0:00:37.9]} 28. exd7 {[%clk 0:00:25.9]} 28... Rd8 {[%clk 0:00:37.9]} 29.
Rg1+ {[%clk 0:00:21.4]} 29... Kf8 {[%clk 0:00:37.8]} 30. Qf2 {[%clk 0:00:18.1]}
30... Rxd7 {[%clk 0:00:30.4]} 31. Bxf6 {[%clk 0:00:17.3]} 31... Rxf6 {[%clk
0:00:31.3]} 32. Qxh4 {[%clk 0:00:17.5]} 32... Re6 {[%clk 0:00:32.2]} 33. Bd5
{[%clk 0:00:16.1]} 33... Re2+ {[%clk 0:00:32]} 34. Rg2 {[%clk 0:00:16.4]} 34...
Rde7 {[%clk 0:00:31.8]} 35. Qxh5 {[%clk 0:00:15.5]} 35... Rxg2+ {[%clk
0:00:31.3]} 36. Kxg2 {[%clk 0:00:16.1]} 36... Ke8 {[%clk 0:00:32.2]} 37. Qf3
{[%clk 0:00:13.4]} 37... Kd7 {[%clk 0:00:33.1]} 38. Kf2 {[%clk 0:00:13.7]} 38...
Kc7 {[%clk 0:00:32.2]} 39. Qh3 {[%clk 0:00:13.9]} 39... f5 {[%clk 0:00:31.2]}
40. Qh4 {[%clk 0:00:14.3]} 40... Re8 {[%clk 0:00:30.5]} 41. Qf6 {[%clk
0:00:14.4]} 41... a6 {[%clk 0:00:28.8]} 42. Qxf5 {[%clk 0:00:14.6]} 42... Kb6
{[%clk 0:00:28.7]} 43. Qd7 {[%clk 0:00:14.4]} 43... Rb8 {[%clk 0:00:18.1]} 44.
Qxd6+ {[%clk 0:00:14.1]} 44... Ka5 {[%clk 0:00:18.5]} 45. Qxc5+ {[%clk 0:00:14]}
45... Ka4 {[%clk 0:00:19.4]} 46. Qa3# {[%clk 0:00:13.8]} 1-0

[Event "*** Titled Tuesday Blitz"]
[Site "Chess.com"]
[Date "2021.04.27"]
[Round "8"]
[White "monalize"]
[Black "djano"]
[Result "1-0"]
[WhiteElo "2397"]
[BlackElo "2475"]
[TimeControl "180+1"]
[EndTime "11:27:29 PDT"]
[Termination "monalize won on time"]

1. e4 {[%clk 0:03:00.9]} 1... c6 {[%clk 0:02:59.1]} 2. Nc3 {[%clk 0:02:59.6]}
2... d5 {[%clk 0:03:00]} 3. d4 {[%clk 0:02:59.4]} 3... dxe4 {[%clk 0:02:58.7]}
4. Nxe4 {[%clk 0:03:00.3]} 4... Bf5 {[%clk 0:02:59]} 5. Ng3 {[%clk 0:02:59.2]}
5... Bg6 {[%clk 0:02:59.5]} 6. Nh3 {[%clk 0:02:58.9]} 6... Nf6 {[%clk
0:02:56.3]} 7. Nf4 {[%clk 0:02:58.3]} 7... e5 {[%clk 0:02:54.8]} 8. dxe5 {[%clk
0:02:54.2]} 8... Qa5+ {[%clk 0:02:54.2]} 9. c3 {[%clk 0:02:53.6]} 9... Qxe5+
{[%clk 0:02:54.1]} 10. Be2 {[%clk 0:02:47.2]} 10... Nbd7 {[%clk 0:02:46]} 11.
O-O {[%clk 0:02:46.5]} 11... Bc5 {[%clk 0:02:38.2]} 12. Nd3 {[%clk 0:02:29.7]}
12... Qc7 {[%clk 0:02:16.8]} 13. Nxc5 {[%clk 0:02:28.5]} 13... Nxc5 {[%clk
0:02:17.7]} 14. Re1 {[%clk 0:02:19.5]} 14... O-O {[%clk 0:02:16.3]} 15. Qd4
{[%clk 0:02:16]} 15... Ne6 {[%clk 0:02:13.2]} 16. Qh4 {[%clk 0:02:05.9]} 16...
Rad8 {[%clk 0:02:06.3]} 17. Be3 {[%clk 0:02:05.2]} 17... Nd5 {[%clk 0:01:56.6]}
18. Bg5 {[%clk 0:01:27.5]} 18... Nxg5 {[%clk 0:01:42.6]} 19. Qxg5 {[%clk
0:01:27]} 19... Qf4 {[%clk 0:01:33.8]} 20. h4 {[%clk 0:01:22.2]} 20... Qxg5
{[%clk 0:01:25.5]} 21. hxg5 {[%clk 0:01:21.9]} 21... Nf4 {[%clk 0:01:26.2]} 22.
Bf3 {[%clk 0:01:21.8]} 22... Rd2 {[%clk 0:01:22]} 23. b3 {[%clk 0:01:17]} 23...
Ne6 {[%clk 0:01:17.2]} 24. Re5 {[%clk 0:01:03.2]} 24... Rfd8 {[%clk 0:01:01.3]}
25. b4 {[%clk 0:00:30.5]} 25... Rc2 {[%clk 0:00:56.3]} 26. Re3 {[%clk
0:00:17.8]} 26... Nxg5 {[%clk 0:00:53]} 27. Bg4 {[%clk 0:00:16.5]} 27... Ne6
{[%clk 0:00:30.5]} 28. a4 {[%clk 0:00:13.5]} 28... Nc7 {[%clk 0:00:25.8]} 29.
Re7 {[%clk 0:00:12.5]} 29... Nd5 {[%clk 0:00:24.4]} 30. Rxb7 {[%clk 0:00:12.1]}
30... a6 {[%clk 0:00:20.7]} 31. b5 {[%clk 0:00:08.9]} 31... axb5 {[%clk
0:00:20.1]} 32. a5 {[%clk 0:00:08.8]} 32... Nxc3 {[%clk 0:00:18.6]} 33. a6
{[%clk 0:00:08.5]} 33... f5 {[%clk 0:00:13]} 34. Bf3 {[%clk 0:00:06.8]} 34...
Ra2 {[%clk 0:00:11.2]} 35. Rxa2 {[%clk 0:00:06.4]} 35... Nxa2 {[%clk 0:00:11.8]}
36. a7 {[%clk 0:00:06.4]} 36... Be8 {[%clk 0:00:06.2]} 37. Rb8 {[%clk
0:00:06.1]} 1-0